Cogmind - Beta 16 @@@ ROGUE MODE // 2025.12.15 @ 14:39:58 Player: winnking222 Result: Destroyed by P1-0ZC(R) with Subdweller Beam Cannon Performance ------------- Evolutions (0) 0 Regions Visited (3) 600 Robots Destroyed (40) 200 Value Destroyed (984) 984 Prototype IDs (13) 260 Alien Tech Used (0) 0 Bonus (7) 7 TOTAL SCORE: 2051 Bonus ------- Follower Combat Kills 7 Cogmind --------- Core Integrity 0/250 Matter 170/300 Energy 99/100 System Corruption 0% Temperature Cool (9) Movement Core (50) Location -10/Subcaves Parts ------- > --- POWER (1) -------- (None) > --- PROPULSION (2) --- (None) > --- UTILITY (2) ------ (None) > --- WEAPON (2) ------- Dirty Datajack > --- INVENTORY (5) ---- High-capacity Matter Pod (200) Scrap Shield Power Bank Peak State ------------ > --- POWER ------------ Subdweller Power Source > --- PROPULSION ------- Spiked Treads Subdweller Monowheel > --- UTILITY ---------- Large Storage Unit Makeshift Light Armor Plating > --- WEAPON ----------- Subdweller Machine Gun Subdweller Machine Gun > --- INVENTORY -------- Subdweller Power Source High-capacity Matter Pod Experimental Sensor Array Medium Armor Plating Medium Armor Plating Scrap Shield Power Bank Subdweller Beam Cannon Improved Light Cannon Improved Light Cannon Battle Cannon Subdweller Shrapnel Launcher Dirty Datajack Shrapnel Trap [Rating: 19] Favorites ----------- Power Light Nuclear Core Engine Ion Engine Power Core Light Nuclear Core Propulsion Light Treads Treads Light Treads Wheel Compact Wheel Utility Large Storage Unit Device Seismic Detector Storage Large Storage Unit Protection Makeshift Light Armor Plating Weapon Heavy Assault Rifle Energy Gun EM Pulse Gun Energy Cannon Subdweller Beam Cannon Ballistic Gun Heavy Assault Rifle Ballistic Cannon Improved Light Cannon Launcher Subdweller Shrapnel Launcher Special Melee Weapon Dirty Datajack Build | -11 -10 -10 -10 ------- Run | Yrd Mat Min Sub Slots Evolved . | . . . . Power . | . . . . Propulsion . | . . . . Utility . | . . . . Weapon . | . . . . Parts Attached 38 | 7 6 2 23 Power 6 | 1 1 . 4 Engine 5 | 1 . . 4 Core 1 | . 1 . . Reactor . | . . . . Propulsion 7 | 2 . . 5 Treads 3 | 2 . . 1 Leg . | . . . . Wheel 4 | . . . 4 Hover . | . . . . Flight . | . . . . Utility 7 | 2 2 . 3 Device 1 | 1 . . . Storage 2 | 1 1 . . Processor . | . . . . Hackware . | . . . . Protection 4 | . 1 . 3 Artifact . | . . . . Weapon 18 | 2 3 2 11 Energy Gun 3 | 2 1 . . Energy Cannon 2 | . . . 2 Ballistic Gun 8 | . . 2 6 Ballistic Cannon 3 | . 2 . 1 Launcher 1 | . . . 1 Special Weapon . | . . . . Impact Weapon . | . . . . Slashing Weapon . | . . . . Piercing Weapon . | . . . . Special Melee Weapon 1 | . . . 1 Unidentified Prototypes 1 | . 1 . . Parts Lost 10 | . . . 10 Power 1 | . . . 1 Propulsion 5 | . . . 5 Utility 1 | . . . 1 Weapon 3 | . . . 3 Highest Loss Streak 6 | . . . 6 To Critical Strikes . | . . . . Average Backups 13 | 5 14 15 12 Power . | . 1 1 . Propulsion 1 | 3 3 3 . Utility 5 | . 4 5 5 Weapon 5 | . 5 5 5 Tool/Special . | . . . . Unused Backups 15 | . 3 . 12 Power 1 | . . . 1 Propulsion 3 | . 1 . 2 Utility 7 | . 1 . 6 Weapon 4 | . 1 . 3 Tool/Special . | . . . . Average Slot Usage (%) 98 | . 99 100 97 Engine 7 | . 3 . 12 Core 6 | . 10 14 1 Treads 21 | . 28 28 16 Wheel 5 | . . . 10 Device 9 | . 13 14 6 Storage 13 | . 14 14 13 Protection 3 | . . . 6 Energy Cannon 1 | . . . 1 Ballistic Gun 17 | . . 25 24 Ballistic Cannon 7 | . 25 2 . Peak Build Rating 19 | 7 14 14 19 Average Rating 13 | 5 12 13 14 On Entrance 8 | . 7 13 14 Avg Prop Armor Cover (%) 11 | . . 10 11 Naked Turns 2 | . . . 2 Heaviest Build 45 | 13 40 34 45 Greatest Support 40 | 40 40 40 40 Greatest Overweight (x) 8 | 2 . 1 8 Average Overweight (x) . | . . . . Largest Inventory Capacity 15 | 8 15 15 15 Average Capacity 14 | 7 14 15 14 Most Carried 15 | 7 15 15 15 Average Carried 14 | 5 14 15 13 Final Capacity 15 | 8 15 15 5 Final Carried 15 | 7 15 15 4 Class Distribution -------------------- 97% | Mutant Dominant Class ---------------- Mutant | -10/Materials Mutant | -10/Mines Mutant | -10/Subcaves Resources | -11 -10 -10 -10 ----------- Run | Yrd Mat Min Sub Matter Collected 1430 | 270 588 26 546 Remotely . | . . . . Salvage Created 1031 | 177 495 . 359 Parts 91 | 19 40 . 32 Haulers Intercepted 2 | . 2 . . Recyclers Shooed . | . . . . Parts Field Recycled . | . . . . Retrieved Matter . | . . . . Parts Self-Destructed 11 | . . . 11 Prevented . | . . . . Parts Restored . | . . . . Kills | -11 -10 -10 -10 ------- Run | Yrd Mat Min Sub Combat Hostiles Destroyed 24 | . 13 . 11 Guns 9 | . 2 . 7 Cannons 12 | . 11 . 1 AOE 3 | . . . 3 Classes Destroyed 12 | 2 7 . 3 Worker 1 | . 1 . . Builder 1 | . 1 . . Tunneler 4 | 4 . . . Hauler 2 | . 2 . . Recycler 1 | 1 . . . Operator 3 | . 3 . . Turret 1 | . . . 1 Watcher 3 | . 3 . . Swarmer 5 | . 3 . 2 Grunt 10 | . 10 . . Sentry 1 | . . . 1 Subdweller 8 | . . . 8 Best Kill Streak 4 | 2 4 . 4 Combat Bots Only 4 | . 4 . 4 Max Kills in Single Turn 1 | 1 1 . 1 Gunslinging . | . . . . Exploded 1 | . . . 1 Melee . | . . . . Uniques/NPCs Destroyed . | . . . . Combat | -11 -10 -10 -10 -------- Run | Yrd Mat Min Sub Hostile Shots Fired 145 | . 44 1 100 Missed 41 | . 11 . 30 Hits 104 | . 33 1 70 Projectile 104 | . 33 1 70 AOE 3 | . . . 3 Critical Strikes 2 | . 2 . . Part Disruptions 1 | . . 1 . Damage Taken 2000 | . 407 12 1581 Core 270 | . 21 . 249 Absorbed by Shields . | . . . . Core Remaining (%) 100 | 100 . . . Volleys Fired 150 | 6 52 . 92 Largest 2 | 2 2 . 2 Hottest 80 | 80 80 . 80 Shots Fired 239 | 12 104 . 123 Gun 123 | 12 18 . 93 Cannon 108 | . 86 . 22 Launcher 8 | . . . 8 Special . | . . . . Kinetic 191 | . 86 . 105 Thermal 18 | . . . 18 Explosive . | . . . . Electromagnetic 30 | 12 18 . . Robot Hit Streak 10 | 3 10 . 9 Robot Miss Streak 4 | 2 4 . 2 Penetration Max . | . . . . Secondary Targets 2 | . . . 2 Max Gunslinging Chain 1 | . . . 1 Shots Hit Robots 110 | 7 56 . 47 Core Hits 52 | 6 28 . 18 Critical Kills 1 | . . . 1 Critical Parts Destroyed . | . . . . Critical Strikes 2 | . 1 . 1 Destroy 1 | . . . 1 Blast 1 | . 1 . . Melee Attacks . | . . . . Impact . | . . . . Slashing . | . . . . Piercing . | . . . . Sneak Attacks . | . . . . Combat Hostiles . | . . . . Follow-up Attacks . | . . . . Damage Inflicted 2496 | 108 1130 . 1258 Guns 870 | 108 148 . 614 Cannons 1003 | . 870 . 133 Explosions 545 | . 34 . 511 Melee . | . . . . Ramming 78 | . 78 . . Kinetic 1995 | . 870 . 1125 Thermal 167 | . 34 . 133 Explosive . | . . . . Electromagnetic 256 | 108 148 . . Impact . | . . . . Slashing . | . . . . Piercing . | . . . . Highest Corruption . | . . . . Average Corruption . | . . . . Corruption Purged . | . . . . Corruption Blocked . | . . . . Overload Shots . | . . . . Overflow Damage . | . . . . Projectiles . | . . . . Explosions . | . . . . Melee . | . . . . Knockbacks 8 | . 8 . . Impact . | . . . . Kinetic 8 | . 8 . . Secondary . | . . . . Self-Inflicted Damage 87 | . . . 87 Shots 3 | . . . 3 Rammed 15 | . 15 . . Targets Rammed 16 | . 16 . . Kicked . | . . . . Crushed 1 | . 1 . . Highest Temperature 111 | 36 111 2 20 Average Temperature 28 | 15 33 2 8 Received Heat Transfer 500 | . 237 20 243 Siege Activations . | . . . . Martial Activations . | . . . . Shielding Activations . | . . . . Robots Disrupted . | . . . . Combat Hostiles . | . . . . Robots Corrupted . | . . . . Combat Hostiles . | . . . . Parts Fried . | . . . . Impact Corruptions . | . . . . Robots Melted . | . . . . Combat Hostiles . | . . . . Parts Melted . | . . . . Heat Transferred 235 | . 50 . 185 Parts Sabotaged . | . . . . Parts Stolen . | . . . . Parts Stripped . | . . . . Power Chain Reactions 1 | . 1 . . Alert | -11 -10 -10 -10 ------- Run | Yrd Mat Min Sub Maximum Alert Level . | . . . . Low Security (%) 100 | 100 100 100 . Level 1 . | . . . . Level 2 . | . . . . Level 3 . | . . . . Level 4 . | . . . . Level 5 . | . . . . High Security . | . . . . Max Security . | . . . . Peak Influence 94 | 10 94 6 . Initial 6 | . . 6 . Average 16 | 2 28 . . Influence Increases 672 | 25 469 . 178 Destroy 0b10 Robot/C 360 | . 260 . 100 Destroy 0b10 Robot/NC 75 | 25 50 . . Destroy Leader 80 | . 80 . . Allied During Kill 3 | . . . 3 Successful Hack 18 | . 18 . . Disable Machine 30 | . 30 . . Destroy Structure 16 | . 16 . . Lose Combat Pursuer 90 | . 15 . 75 Influence Decreases 672 | 25 453 16 178 Entered New Map 10 | . . 10 . Time Decay 632 | 25 453 6 148 Lost Part 10 | . . . 10 Lost Ally 20 | . . . 20 Squads Dispatched 3 | . 3 . . Investigation 2 | . 2 . . Extermination . | . . . . Reinforcement 1 | . 1 . . Assault . | . . . . Garrison . | . . . . Intercept . | . . . . Searches Triggered . | . . . . Construction Impeded . | . . . . Haulers Reinforced . | . . . . Active Scanning Responses . | . . . . Cargo Convoy Interrupts . | . . . . Stealth | -11 -10 -10 -10 --------- Run | Yrd Mat Min Sub Distress Signals . | . . . . Communications Jammed . | . . . . Distress Signals . | . . . . Times Spotted 45 | . 23 1 21 Peak Tracking Total 4 | . 4 1 3 Tactical Retreats 5 | . 1 . 4 Traps | -11 -10 -10 -10 ------- Run | Yrd Mat Min Sub Traps Triggered 8 | . 2 . 6 Indirectly . | . . . . Trap Hack Attempts . | . . . . Triggered . | . . . . Disarmed . | . . . . Reprogrammed . | . . . . Reused . | . . . . Traps Extracted . | . . . . Installed . | . . . . Triggered . | . . . . Most Traps Carried 1 | . . . 1 Machines | -11 -10 -10 -10 ---------- Run | Yrd Mat Min Sub Machines Disabled 2 | . 2 . . Max in Single Turn 1 | . 1 . . Machines Repaired . | . . . . Machines Dismantled . | . . . . Machines Sabotaged . | . . . . Overloaded Fab Kills . | . . . . Hacking | -11 -10 -10 -10 --------- Run | Yrd Mat Min Sub Machines Accessed 8 | . 6 . 2 Terminals 6 | . 6 . . Fabricators . | . . . . Repair Stations . | . . . . Recycling Units . | . . . . Scanalyzers . | . . . . Garrison Access . | . . . . Total Hacks 19 | . 14 . 5 Successful 14 | . 9 . 5 Failed 5 | . 5 . . Catastrophic . | . . . . Database Lockouts . | . . . . Manual 14 | . 14 . . Terminals 14 | . 14 . . Fabricators . | . . . . Repair Stations . | . . . . Recycling Units . | . . . . Scanalyzers . | . . . . Garrison Access . | . . . . Terminal Hacks 5 | . . . 5 Record 4 | . . . 4 Proto ID Catalog 1 | . . . 1 Fabricator Hacks . | . . . . Repair Station Hacks . | . . . . Recycling Unit Hacks . | . . . . Scanalyzer . | . . . . Garrison Access Hacks . | . . . . Unauthorized Hacks 9 | . 9 . . Terminals 9 | . 9 . . Botnet 3 | . 3 . . Skim 6 | . 6 . . Fabricators . | . . . . Repair Stations . | . . . . Recycling Units . | . . . . Scanalyzers . | . . . . Garrison Access . | . . . . Data Cores Recovered . | . . . . Used . | . . . . Hacking Detections 4 | . 4 . . Full Trace Events . | . . . . Feedback Events . | . . . . Feedback Blocked . | . . . . Robot Schematics Acquired . | . . . . Robots Built . | . . . . Authchips . | . . . . Time . | . . . . Total Robot Build Rating . | . . . . Part Schematics Acquired . | . . . . Parts Built . | . . . . Authchips . | . . . . Time . | . . . . Total Part Build Rating . | . . . . Part Studies Acquired . | . . . . Parts Repaired . | . . . . Time . | . . . . Parts Recycled . | . . . . Recycled Matter . | . . . . Retrieved Matter . | . . . . Retrieved Components . | . . . . Parts Scanalyzed . | . . . . Part Schematics Acquired . | . . . . Parts Damaged . | . . . . Bothacking | -11 -10 -10 -10 ------------ Run | Yrd Mat Min Sub Used RIF Installer . | . . . . Robots Hacked . | . . . . Non-combat . | . . . . Combat . | . . . . Robot Hacks Applied . | . . . . Relay Couplers Released . | . . . . Fabnet Peak Effective % . | . . . . Robots Rewired . | . . . . Allies Hacked . | . . . . Hacks Repelled . | . . . . Allies | -11 -10 -10 -10 -------- Run | Yrd Mat Min Sub Total Allies 3 | . . 3 . Largest Group 3 | . . 3 2 Highest-Rated Group 75 | . . 75 44 Highest-Rated Ally 31 | . . 31 31 Total Orders . | . . . . Ally Attacks 10 | . . 2 8 Total Damage 126 | . . 20 106 Kills 2 | . . 1 1 Allies Corrupted . | . . . . Allies Melted . | . . . . Intel | -11 -10 -10 -10 ------- Run | Yrd Mat Min Sub Active Infowar (turns) 4386 | 35 1642 1089 1620 Seismic 4386 | 35 1642 1089 1620 Robot Analysis Total . | . . . . Derelict Logs Recovered 5 | . . 2 3 Drone Launches . | . . . . Drone Recoveries . | . . . . Exploration | -11 -10 -10 -10 ------------- Run | Yrd Mat Min Sub Turns Passed 6245 | 124 1747 1089 3285 Spaces Moved 3630 | 64 886 630 2050 Core 95 | 15 . . 80 Treads 2043 | 49 886 630 478 Legs . | . . . . Wheels 1492 | . . . 1492 Hover . | . . . . Flight . | . . . . Fastest Speed 50 | 50 160 160 50 Average Speed 143 | 138 160 170 128 Slowest Speed 450 | 160 160 240 450 Overloaded Moves . | . . . . Propulsion Burnouts . | . . . . Robots Hopped . | . . . . Potential Cave-ins . | . . . . Cave-ins Triggered . | . . . . Exploration Rate (%) 73 | 4 97 98 96 Regions Visited 3 Branch Regions 2 Pre-discovered Areas 4 | . 1 1 2 Known Exits Taken 1 | . 1 . . Unknown Exits Taken 2 | 1 . 1 . Scrap Searched 5 | . . 1 4 Spaces Dug . | . . . . Terrain Destroyed 110 | . 14 . 96 Melee . | . . . . Projectile 11 | . 11 . . AOE 99 | . 3 . 96 Terrain Rammed . | . . . . Walls Destroyed . | . . . . Machines Disabled . | . . . . Actions | -11 -10 -10 -10 --------- Run | Yrd Mat Min Sub Total 4406 | 86 1102 647 2571 Wait 489 | . 118 14 357 Move 3627 | 63 885 629 2050 Hop . | . . . . Pick Up 39 | 10 12 1 16 Fast Attach 13 | 4 4 . 5 Attach 10 | 3 . . 7 Detach . | . . . . Swap 26 | . 6 2 18 Drop 36 | . 9 1 26 Fire 150 | 6 52 . 92 Melee . | . . . . Ram . | . . . . Kick . | . . . . Crush 16 | . 16 . . Escape Stasis . | . . . . Rewire . | . . . . Trap . | . . . . Miscellaneous . | . . . . Route ------- -11/Scrapyard -10/Materials (discovered 5 exits: *Mat x3 / *Min x2) -10/Mines (discovered 3 exits: *Mat x2 / *Sub) -10/Subcaves (discovered 3 exits: *Mat x2 / [*Rec]) History --------- Turn | Location | Event 9 | -11/Scrapyard | Discovered new exit (range 15) 125 | -11/Scrapyard | Entered Materials 300 | -10/Materials | Build established: Mutant 342 | -10/Materials | Discovered new exit (range 16) 541 | -10/Materials | Discovered new exit (range 11) 829 | -10/Materials | Discovered new exit (range 15) 855 | -10/Materials | Discovered new exit (range 16) 1296 | -10/Materials | Learned Storage terminal intel 1416 | -10/Materials | Learned Storage stockpile data 1462 | -10/Materials | Learned location of 2 exits from Subcaves 1499 | -10/Materials | Identified exit to Materials 1525 | -10/Materials | Learned location of Recycling (-7) 1539 | -10/Materials | Learned 4 Recycling zone layouts 1564 | -10/Materials | Learned Storage terminal intel 1598 | -10/Materials | Identified exit to Mines 1642 | -10/Materials | Learned 2 Storage zone layouts 1696 | -10/Materials | Learned 2 Mines zone layouts 1872 | -10/Materials | Entered Mines 1961 | -10/Mines | Assembled infested the area 2018 | -10/Mines | Received a Mining Laser from a helpful Derelict 2104 | -10/Mines | Learned location of Storage (-7) 2642 | -10/Mines | Found a damaged Exp. Sensor Array with a note attached 2645 | -10/Mines | Found Prototype Device 2646 | -10/Mines | Learned Materials emergency access door positions 2667 | -10/Mines | Discovered exit to Materials (range 6) 2947 | -10/Mines | Discovered new exit (range 6) 2961 | -10/Mines | Entered Subcaves 2961 | -10/Subcaves | Accompanied by 2 allies 2962 | -10/Subcaves | Identified exit to Materials 2966 | -10/Subcaves | Led the pair of lost Derelicts to an unsafe place 2976 | -10/Subcaves | Learned location of 1 exit from Materials 3185 | -10/Subcaves | Shifting Twisted Machinery released Scrap Shield 3185 | -10/Subcaves | Shifting Twisted Machinery released Scrap Shield 3396 | -10/Subcaves | A swath of the cavern ceiling suddenly collapsed 3736 | -10/Subcaves | Visited Clippyterm 3741 | -10/Subcaves | Learned location of Deep Caves (-7) 3741 | -10/Subcaves | Learned 40 Factory zone layouts 4141 | -10/Subcaves | Learned Materials trap positions 4146 | -10/Subcaves | A swath of the cavern ceiling suddenly collapsed 4731 | -10/Subcaves | Visited 4L-MR0's lab 5009 | -10/Subcaves | Discovered new exit (range 13) 5183 | -10/Subcaves | Shifting Twisted Machinery released Flamer 5215 | -10/Subcaves | Shifting Twisted Machinery released Battle Cannon 5495 | -10/Subcaves | Shifting Twisted Machinery released Sub. Beam Cannon 5506 | -10/Subcaves | Disturbed a concealed Subdweller 5579 | -10/Subcaves | Shifting Twisted Machinery released Sub. Laser 5992 | -10/Subcaves | A Subdweller sparked back to life 5992 | -10/Subcaves | A Subdweller sparked back to life 5992 | -10/Subcaves | A Subdweller sparked back to life 5994 | -10/Subcaves | Ambushed by Subdweller buried in earth 6044 | -10/Subcaves | Found Power Bank 6085 | -10/Subcaves | Core integrity fell below 50% 6193 | -10/Subcaves | Core integrity fell below 20% 6227 | -10/Subcaves | Lost 6 parts (2n1u3w) 6246 | -10/Subcaves | Destroyed by P1-0ZC(R) with Subdweller Beam Cannon Last Messages --------------- 06084_ Critical hit (Impale). 06102_ Triggered Piercing Trap. 06102_ Spikes shoot up from the floor. 06102_ Critical hit (Impale). 06129_ Acquired Sub. Monowheel. 06134_ Acquired 16 matter. 06135_ Dropped Mak. Light Armor Plating. 06145_ Sub. Power Source shoots sparks and powers down. 06183_ Sub. Machine Gun destroyed. 06187_ Sub. Monowheel destroyed. 06187_ Med. Armor Plating destroyed. 06189_ Sub. Shrapnel Launcher shoots sparks and powers down. 06194_ Broken Sub. Shrapnel Launcher destroyed. 06196_ Sub. Monowheel destroyed. 06201_ Dropped Lrg. Storage Unit. 06202_ Dropped Battle Cannon. 06203_ Acquired Power Bank. 06205_ Dropped Broken Sub. Power Source. 06207_ Acquired Dirty Datajack. 06214_ Dropped Imp. Light Cannon. Map ----- +----------------------------------------------------+ | #?# #" ##?## # #????????????????????? | | #?# #??## #????????????????????? | | #?# ###### # ####??????????????????? | | ### #"" ## ## ##### ###????????????????? | | ##" ###" #####???## ##???????????????? | | #### "## ### #????## ###?????????????? | | ?### " ### ####### #?????????????? | | ?# "###?# #### # # " #????????????## | | ?#####???## ##??## " #????????##### | | ??????????#####????# " ##??????## ## | | ????????????#####??## ## ###### ######## | | ????????????# ###########???## ""#" | | ??????????### ##????????##""" " """ | | ??????????# ##??######"""""""" " | | ?????????## ##?#""##" """""## # | | ?????????# ###" """" "" ##### | | ?????????# ## """## #??# ## | | ??????????# ####""""## #?###### # | | ??????????# ##?## #" ##??????##### | | ??????????# ##### ## ##?###"#?" ???????????? | | ??????????## #???## ## ##??#"#?"" #??????????? | | ???????????# ##???#### #???? ???"#??????????? | | ??????????## #??????## #????????????????????? | | ?????????## #######?# ##????????????????????? | | ?????????# ### ##????????????????????? | | #####???## ##@ ###??????????????????? | | # ##### ## ##?????????????????? | | ## #?????????????????? | | ## ## R ""???????????????? | | ?#### ## """??????????????? | | ????## ## ##""???"??????????? | | #???## ##### ##??"?? ???????????? | | ##??# R #???# ####????? #??#????????? | | #### #???####??????? ## ???????? | | ########???????? # "#??????? | | ##### ##?????? ??????? | | ##?## #????? #?????? | | ## ##??# ###### #?????? | | # #### ##?#### ## ????? | | "# ## ##?# ## #" % ?????? | | "# ### # % " " ????? | | ] ## *]# """????? | | ]]!#" #??????? | | " ## ### !*! ???? | | "##### #?# & ???? | | ##???## ####### ## ### ##????? | | ??????####?????########?# "##########?????? | | ????????????????????????## #??????????????? | | ?????????????????????????##########??????????????? | | ?????????????????????????????????????????????????? | +----------------------------------------------------+ Best States ------------- Heat Dissipation 25 Energy Generation 15 Energy Capacity 250 Matter Stores 300 Matter Capacity 300 Sight Range 16 Terrain Scan Density 10 Armor Coverage 225 Evasion (%) 50 Recoil Reduction 2 Item Schematics ----------------- None Robot Schematics ------------------ None Fabricated ------------ Nothing Repaired ---------- Nothing Studied --------- None Alien Tech Used ----------------- None Achievements -------------- None Challenges ------------ None Game ------ Seed MicrodissipatorCoolingLoader Manual? 0 Play Time 00:29:47 Cumulative 204.3 hours Start 2025.12.15 @ 14:02:35 End 2025.12.15 @ 14:39:58 Sessions 1 Manual Loads 0 Difficulty Rogue Special Mode None Game No. 288 Rogue 288 Adventurer 0 Explorer 0 Win Type - Total 3 Types 2/0/0/1/0/0/0/0/0/0 Lore% 73 Gallery% 73 Achievement% 45 Wizard Run 0 Options --------- Layout 0 ASCII 0 Keyboard 0 Movement Mouse Keybinds 0 Fullscreen 1 Font 16/SmallcapsGlow Map View 75x55 Zoom Use 0% Tactical HUD 1 Map Filters NONE Filters NONE Steam 1 RUN: 9f2c246e-d2eb-40d3-a6dd-38a59b52b9cc